Cogmind - Beta 14 @@@ ROGUE MODE // 2024.08.17 @ 21:44:44 Player: Lillith Result: Self-destructed Performance ------------- Evolutions (5) 2500 Regions Visited (7) 1400 Robots Destroyed (50) 250 Value Destroyed (1475) 1475 Prototype IDs (21) 420 Alien Tech Used (0) 0 Bonus (668) 668 TOTAL SCORE: 6713 Bonus ------- High Alert Combat Kills 12 Follower Combat Kills 374 Registered with UFD 300 Friendly Fire -18 Cogmind --------- Core Integrity 800/1000 Matter 280/300 Energy 150/150 System Corruption 27% Temperature Cool (0) Movement Flying (435) Ox5 Location -5/Upper Caves Parts ------- > --- POWER (2) -------- Micro Fission Core > --- PROPULSION (6) --- Cesium-ion Thruster > --- UTILITY (6) ------ Medium Storage Unit Hardened Light Armor Plating Makeshift System Shield Makeshift System Shield > --- WEAPON (3) ------- Hypervelocity Gauss Rifle Ripper (fused) > --- INVENTORY (10) --- Improved Transmission Jammer Hardened Light Armor Plating Hardened Light Armor Plating Point Defense Array KE Penetrator Antimatter Cannon Improved Proton Missile Launcher Large Botcube Peak State ------------ > --- POWER ------------ Light Angular Momentum Engine Neutrino Core > --- PROPULSION ------- Nuclear Pulse Array Flightbrick > --- UTILITY ---------- Medium Storage Unit Makeshift Terrain Scan Processor Improved Transmission Jammer Enhanced Scrap Shield Makeshift System Shield > --- WEAPON ----------- KE Penetrator Makeshift Hammer > --- INVENTORY -------- Light Nuclear Core Improved Deuterium Engine Improved Propulsion Shielding Scrapoid Pod Antimatter Cannon Improved Proton Missile Launcher Large Botcube [Rating: 101] Favorites ----------- Power Subdweller Power Source Engine Subdweller Power Source Power Core Micro Fission Core Propulsion Light Treads Treads Light Treads Wheel Armored Wheel Flight Unit Flightbrick Utility High-capacity Storage Unit Device Seismic Detector Storage High-capacity Storage Unit Processor Makeshift Terrain Scan Processor Hackware Makeshift System Shield Protection Improved Light Armor Plating Weapon Subdweller Beam Cannon Energy Gun Makeshift Laser Energy Cannon Subdweller Beam Cannon Ballistic Gun Assault Rifle Ballistic Cannon Antimatter Cannon Launcher Grenade Launcher Impact Weapon Makeshift Hammer Slashing Weapon Ripper Build | -11 -10 -10 -7 -7 -5 -5 -5 ------- Run | Yrd Mat Sub Rec Scr Fac Upp Upp Slots Evolved 10 | . . . . . 10 . . Power 1 | . . . . . 1 . . Propulsion 4 | . . . . . 4 . . Utility 4 | . . . . . 4 . . Weapon 1 | . . . . . 1 . . Parts Attached 103 | 9 12 18 . 6 28 16 14 Power 22 | 2 2 3 . 2 5 6 2 Engine 11 | 2 1 3 . 1 2 1 1 Core 11 | . 1 . . 1 3 5 1 Reactor . | . . . . . . . . Propulsion 15 | 2 4 3 . 2 3 . 1 Treads 9 | 2 4 3 . . . . . Leg . | . . . . . . . . Wheel 2 | . . . . 2 . . . Hover . | . . . . . . . . Flight 4 | . . . . . 3 . 1 Utility 27 | 3 3 1 . 2 9 5 4 Device 9 | 2 1 1 . 1 3 1 . Storage 4 | 1 1 . . 1 1 . . Processor 4 | . . . . . 2 1 1 Hackware 4 | . 1 . . . 2 1 . Protection 6 | . . . . . 1 2 3 Artifact . | . . . . . . . . Weapon 39 | 2 3 11 . . 11 5 7 Energy Gun 3 | . 1 2 . . . . . Energy Cannon 3 | . . 3 . . . . . Ballistic Gun 20 | 2 1 4 . . 5 2 6 Ballistic Cannon 4 | . . . . . 3 1 . Launcher 1 | . . 1 . . . . . Special Weapon . | . . . . . . . . Impact Weapon 6 | . 1 1 . . 3 1 . Slashing Weapon 2 | . . . . . . 1 1 Piercing Weapon . | . . . . . . . . Special Melee Weapon . | . . . . . . . . Unidentified Prototypes 4 | . . . . . 3 1 . Corrupted Parts 1 | . . . . . . 1 . System Corruption 8 | . . . . . . 8 . Parts Lost 23 | . 1 2 . . 10 5 5 Power 5 | . . 1 . . 1 1 2 Propulsion 2 | . . . . . . 1 1 Utility 12 | . 1 . . . 6 3 2 Weapon 4 | . . 1 . . 3 . . Highest Loss Streak 7 | . 1 2 . . 7 3 2 To Critical Strikes . | . . . . . . . . Average Slot Usage (%) 88 | . 99 99 100 95 48 47 50 Engine 8 | . 8 12 14 4 8 3 . Core 4 | . 5 1 . 9 . 5 9 Treads 15 | . 27 28 28 . . . . Wheel 7 | . . . . 28 1 . . Flight 1 | . . . . . 8 8 5 Device 9 | . 6 14 14 9 6 6 3 Storage 11 | . 14 14 14 14 1 5 5 Hackware 2 | . 7 . . . 9 5 10 Energy Gun 6 | . 5 4 14 14 . . . Energy Cannon 8 | . . 11 14 14 . . . Ballistic Gun 8 | . 22 11 . . . 2 2 Peak Build Rating 101 | 9 14 20 20 31 93 101 94 Average Rating 30 | 5 10 16 20 24 76 87 80 On Entrance 32 | . 7 14 20 20 31 86 82 Naked Turns . | . . . . . . . . Heaviest Build 220 | 14 53 58 56 220 220 51 40 Greatest Support 40 | 40 40 40 40 24 37 37 29 Greatest Overweight (x) 9 | . 2 1 1 9 9 1 7 Average Overweight (x) 1 | . . 1 1 3 . 1 1 Largest Inventory Capacity 35 | 8 20 20 20 35 35 10 10 Average Capacity 18 | 6 18 20 20 24 7 10 10 Most Carried 32 | 8 20 20 20 32 32 10 10 Average Carried 16 | 4 14 19 20 20 6 9 9 Final Capacity 35 | 8 20 20 20 35 10 10 10 Final Carried 32 | 7 20 20 20 32 8 10 9 Class Distribution -------------------- 76% | Mutant 8% | Derelict-Mutant 7% | Hauler-Mutant 7% | Hacker-Mutant Dominant Class ---------------- Mutant | -10/Materials Mutant | -10/Subcaves Mutant | -7/Recycling Mutant | -7/Scraptown Derelict-Mutant | -5/Factory Mutant | -5/Upper Caves Hacker-Mutant | -5/Upper Caves Resources | -11 -10 -10 -7 -7 -5 -5 -5 ----------- Run | Yrd Mat Sub Rec Scr Fac Upp Upp Matter Collected 2907 | 223 424 409 . 54 352 419 1026 Remotely . | . . . . . . . . Salvage Created 1801 | 76 541 324 . . 252 328 280 Parts 110 | 10 51 17 . . 11 9 12 Haulers Intercepted 3 | . 2 . . . 1 . . Recyclers Shooed 1 | . . . . . 1 . . Parts Field Recycled . | . . . . . . . . Retrieved Matter . | . . . . . . . . Parts Self-Destructed 63 | . . 19 . . . 10 34 Prevented 2 | . . . . . . 2 . Kills | -11 -10 -10 -7 -7 -5 -5 -5 ------- Run | Yrd Mat Sub Rec Scr Fac Upp Upp Combat Hostiles Destroyed 33 | . 10 10 . . 4 5 4 Melee 1 | . . . . . . . 1 Guns 24 | . 10 6 . . 1 4 3 Cannons 7 | . . 3 . . 3 1 . AOE 1 | . . 1 . . . . . Classes Destroyed 14 | 1 7 1 . . 1 3 1 Worker 3 | . 1 . . . 2 . . Builder 1 | . 1 . . . . . . Tunneler 4 | 3 1 . . . . . . Hauler 3 | . 2 . . . 1 . . Operator 3 | . 2 . . . 1 . . Watcher 3 | . 3 . . . . . . Swarmer 7 | . 3 2 . . 2 . . Grunt 14 | . 7 3 . . 1 2 1 Brawler 1 | . . . . . . 1 . Duelist 2 | . . . . . . . 2 Sentry 2 | . . . . . 1 . 1 Programmer 2 | . . . . . . 2 . Subdweller 5 | . . 5 . . . . . Samaritan 2 | . . . . . . 2 . Best Kill Streak 5 | 3 5 2 . . 2 2 2 Combat Bots Only 5 | . 5 2 . . 2 2 2 Max Kills in Single Turn 1 | 1 1 1 . . 1 1 1 Gunslinging . | . . . . . . . . Exploded 1 | . . 1 . . . . . Melee 1 | . . . . . . . 1 Uniques/NPCs Destroyed . | . . . . . . . . Combat | -11 -10 -10 -7 -7 -5 -5 -5 -------- Run | Yrd Mat Sub Rec Scr Fac Upp Upp Hostile Shots Fired 403 | . 46 58 . . 174 74 51 Missed 140 | . 16 11 . . 73 23 17 Damage Taken 4917 | . 375 781 . . 1757 1029 975 Core 423 | . 77 146 . . 85 20 95 Absorbed by Shields . | . . . . . . . . Redirected to Shielding 104 | . . . . . . . 104 Core Remaining (%) 55 | 100 . . . 10 . . . Volleys Fired 184 | 12 51 40 . . 17 33 31 Largest 2 | 2 2 2 . . 1 1 1 Hottest 113 | 40 85 113 . . 50 40 33 Shots Fired 273 | 24 102 66 . . 16 33 32 Gun 227 | 24 102 39 . . 9 21 32 Cannon 36 | . . 17 . . 7 12 . Launcher 10 | . . 10 . . . . . Special . | . . . . . . . . Kinetic 230 | 24 98 28 . . 15 33 32 Thermal 33 | . 4 28 . . 1 . . Explosive 10 | . . 10 . . . . . Electromagnetic . | . . . . . . . . Robot Hit Streak 9 | 2 6 9 . . 9 7 9 Robot Miss Streak 4 | 1 4 4 . . 2 2 4 Penetration Max 1 | . . . . . 1 . 1 Secondary Targets 2 | . 2 . . . . . . Max Gunslinging Chain 1 | . 1 . . . . . . Shots Hit Robots 181 | 13 61 33 . . 19 25 30 Core Hits 88 | 6 34 13 . . 11 10 14 Critical Kills 1 | . 1 . . . . . . Critical Parts Destroyed 5 | . 1 . . . 1 . 3 Critical Strikes 11 | . 3 . . . 1 . 7 Burn 1 | . 1 . . . . . . Destroy 4 | . 1 . . . . . 3 Smash 2 | . 1 . . . 1 . . Sever 4 | . . . . . . . 4 Melee Attacks 79 | . 4 1 . . 59 2 13 Impact 66 | . 4 1 . . 59 2 . Slashing 13 | . . . . . . . 13 Piercing . | . . . . . . . . Sneak Attacks 11 | . 1 . . . 4 2 4 Combat Hostiles . | . . . . . . . . Follow-up Attacks . | . . . . . . . . Damage Inflicted 4325 | 137 787 850 . . 1031 863 657 Guns 2066 | 137 705 325 . . 230 420 249 Cannons 739 | . . 260 . . 188 291 . Explosions 265 | . . 265 . . . . . Melee 1255 | . 82 . . . 613 152 408 Ramming . | . . . . . . . . Kinetic 2415 | 137 655 263 . . 400 711 249 Thermal 390 | . 50 322 . . 18 . . Explosive 265 | . . 265 . . . . . Electromagnetic . | . . . . . . . . Impact 847 | . 82 . . . 613 152 . Slashing 408 | . . . . . . . 408 Piercing . | . . . . . . . . Highest Corruption 23 | . . . . . 8 21 23 Average Corruption 14 | . . . . . 4 15 21 Corruption Purged . | . . . . . . . . Corruption Blocked . | . . . . . . . . Effects 78 | . . . . . 15 30 33 Message Errors 23 | . . . . . 3 8 12 Matter Fused 15 | . . . . . 3 6 6 Heat Flow Errors 7 | . . . . . 1 4 2 Energy Discharges 12 | . . . . . 3 5 4 Parts Rejected 2 | . . . . . 1 . 1 Parts Fused 2 | . . . . . . 1 1 Data Loss (minor) 11 | . . . . . 2 4 5 Data Loss (major) 2 | . . . . . 1 . 1 Misfires 2 | . . . . . . 1 1 Weapon Failures 2 | . . . . . 1 1 . Overload Shots . | . . . . . . . . Overflow Damage 483 | . 82 . . . 252 142 7 Projectiles . | . . . . . . . . Explosions . | . . . . . . . . Melee 483 | . 82 . . . 252 142 7 Knockbacks 1 | . . . . . . 1 . Impact . | . . . . . . . . Kinetic 1 | . . . . . . 1 . Secondary . | . . . . . . . . Self-Inflicted Damage . | . . . . . . . . Shots . | . . . . . . . . Rammed . | . . . . . . . . Targets Rammed . | . . . . . . . . Kicked . | . . . . . . . . Crushed . | . . . . . . . . Highest Temperature 545 | . 12 545 . . 260 267 185 Average Temperature 89 | . 7 211 . . 127 82 38 Received Heat Transfer 1836 | . 198 795 . . 318 315 210 Effects 7 | . . 6 . . 1 . . Shutdowns 1 | . . 1 . . . . . Energy Bleed 1 | . . . . . 1 . . Matter Decay 1 | . . 1 . . . . . Damage (minor) 2 | . . 2 . . . . . Damage (major) 2 | . . 2 . . . . . Siege Activations . | . . . . . . . . Robots Corrupted 5 | . 1 . . . 2 2 . Combat Hostiles . | . . . . . . . . Parts Fried 5 | . . . . . 2 3 . Impact Corruptions 16 | . 3 . . . 5 8 . Robots Melted . | . . . . . . . . Combat Hostiles . | . . . . . . . . Parts Melted 4 | . 1 3 . . . . . Heat Transferred 703 | . 185 481 . . 37 . . Parts Sabotaged 2 | . . . . . . . 2 Parts Stolen . | . . . . . . . . Parts Stripped . | . . . . . . . . Power Chain Reactions . | . . . . . . . . Alert | -11 -10 -10 -7 -7 -5 -5 -5 ------- Run | Yrd Mat Sub Rec Scr Fac Upp Upp Peak Influence 675 | 15 165 . . . 675 . . Initial 9 | . 9 . . . . . . Average 92 | 4 62 . . . 190 . . Maximum Alert Level 2 | . . . . . 2 . . Low Security (%) 90 | 100 100 . 100 . 66 . . Level 1 3 | . . . . . 12 . . Level 2 5 | . . . . . 20 . . Level 3 . | . . . . . . . . Level 4 . | . . . . . . . . Level 5 . | . . . . . . . . High Security . | . . . . . . . . Max Security . | . . . . . . . . Squads Dispatched 8 | . 3 . . . 4 . 1 Investigation 3 | . 1 . . . 2 . . Extermination . | . . . . . . . . Reinforcement 4 | . 2 . . . 2 . . Assault 1 | . . . . . . . 1 Garrison . | . . . . . . . . Intercept . | . . . . . . . . Searches Triggered . | . . . . . . . . Construction Impeded . | . . . . . . . . Haulers Reinforced . | . . . . . . . . Active Scanning Responses . | . . . . . . . . Cargo Convoy Interrupts . | . . . . . . . . Stealth | -11 -10 -10 -7 -7 -5 -5 -5 --------- Run | Yrd Mat Sub Rec Scr Fac Upp Upp Distress Signals 5 | . 2 . . . 3 . . Communications Jammed 14 | . . . . . 14 . . Distress Signals 12 | . . . . . 12 . . Times Spotted 110 | . 19 11 . . 55 6 19 Peak Tracking Total 14 | . 3 5 . . 14 3 9 Tactical Retreats 17 | . 1 2 . . 13 1 . Traps | -11 -10 -10 -7 -7 -5 -5 -5 ------- Run | Yrd Mat Sub Rec Scr Fac Upp Upp Traps Triggered 2 | . 2 . . . . . . Indirectly . | . . . . . . . . Trap Hack Attempts . | . . . . . . . . Triggered . | . . . . . . . . Disarmed . | . . . . . . . . Reprogrammed . | . . . . . . . . Reused . | . . . . . . . . Traps Extracted . | . . . . . . . . Installed . | . . . . . . . . Triggered 1 | . . . . . . 1 . Most Traps Carried 1 | . . 1 . . . . . Machines | -11 -10 -10 -7 -7 -5 -5 -5 ---------- Run | Yrd Mat Sub Rec Scr Fac Upp Upp Machines Disabled 3 | . . 2 . . . . 1 Max in Single Turn 1 | . . 1 . . . . . Garrison Access 1 | . . . . . 1 . . Machines Repaired . | . . . . . . . . Machines Dismantled . | . . . . . . . . Machines Sabotaged . | . . . . . . . . Overloaded Fab Kills . | . . . . . . . . Hacking | -11 -10 -10 -7 -7 -5 -5 -5 --------- Run | Yrd Mat Sub Rec Scr Fac Upp Upp Machines Accessed 20 | . 5 1 . 2 10 1 1 Terminals 11 | . 5 . . . 6 . . Fabricators 1 | . . . . . 1 . . Repair Stations 1 | . . . . . 1 . . Recycling Units . | . . . . . . . . Scanalyzers 1 | . . . . . 1 . . Garrison Access 1 | . . . . . 1 . . Total Hacks 67 | . 19 1 . 10 35 1 1 Successful 45 | . 11 1 . 10 21 1 1 Failed 21 | . 8 . . . 13 . . Catastrophic 1 | . . . . . 1 . . Database Lockouts 1 | . . . . . 1 . . Manual 34 | . 19 . . . 15 . . Terminals 41 | . 19 . . . 22 . . Fabricators 2 | . . . . . 2 . . Repair Stations 5 | . . . . . 5 . . Recycling Units . | . . . . . . . . Scanalyzers 5 | . . . . . 5 . . Garrison Access 1 | . . . . . 1 . . Terminal Hacks 22 | . 4 1 . 10 5 1 1 Record 4 | . . . . 4 . . . Part Schematic 1 | . . . . . 1 . . Robot Analysis 10 | . 4 . . 6 . . . Open Door 2 | . . . . . . 1 1 Open DSF 1 | . . . . . 1 . . Branch Access Points 1 | . . . . . 1 . . Unreport Threat 2 | . . . . . 2 . . Derelict Proto ID Bank 1 | . . 1 . . . . . Fabricator Hacks 2 | . . . . . 2 . . Load Schematic 1 | . . . . . 1 . . Build 1 | . . . . . 1 . . Repair Station Hacks 2 | . . . . . 2 . . Scan Component 1 | . . . . . 1 . . Repair 1 | . . . . . 1 . . Recycling Unit Hacks . | . . . . . . . . Scanalyzer 5 | . . . . . 5 . . Insert Component 2 | . . . . . 2 . . Analyze 3 | . . . . . 3 . . Garrison Access Hacks 1 | . . . . . 1 . . Seal Access 1 | . . . . . 1 . . Unauthorized Hacks 13 | . 7 . . . 6 . . Terminals 13 | . 7 . . . 6 . . Botnet 4 | . 2 . . . 2 . . Skim 9 | . 5 . . . 4 . . Fabricators . | . . . . . . . . Repair Stations . | . . . . . . . . Recycling Units . | . . . . . . . . Scanalyzers . | . . . . . . . . Garrison Access . | . . . . . . . . Data Cores Recovered . | . . . . . . . . Used . | . . . . . . . . Hacking Detections 12 | . 4 . . . 8 . . Full Trace Events 2 | . . . . . 2 . . Feedback Events 1 | . . . . . 1 . . Corruption 1 | . . . . . 1 . . Feedback Blocked . | . . . . . . . . Robot Schematics Acquired . | . . . . . . . . Robots Built . | . . . . . . . . Authchips . | . . . . . . . . Time . | . . . . . . . . Total Robot Build Rating . | . . . . . . . . Part Schematics Acquired 3 | . . . . . 3 . . Parts Built 1 | . . . . . 1 . . Authchips . | . . . . . . . . Time 51 | . . . . . 51 . . Total Part Build Rating 1 | . . . . . 1 . . Parts Repaired 1 | . . . . . 1 . . Time 39 | . . . . . 39 . . Parts Recycled . | . . . . . . . . Recycled Matter . | . . . . . . . . Retrieved Matter . | . . . . . . . . Retrieved Components . | . . . . . . . . Parts Scanalyzed 2 | . . . . . 2 . . Part Schematics Acquired 2 | . . . . . 2 . . Parts Damaged 1 | . . . . . 1 . . Bothacking | -11 -10 -10 -7 -7 -5 -5 -5 ------------ Run | Yrd Mat Sub Rec Scr Fac Upp Upp Used RIF Installer . | . . . . . . . . Robots Hacked . | . . . . . . . . Non-combat . | . . . . . . . . Combat . | . . . . . . . . Robot Hacks Applied . | . . . . . . . . Relay Couplers Released . | . . . . . . . . Fabnet Peak Effective % . | . . . . . . . . Robots Rewired . | . . . . . . . . Allies Hacked . | . . . . . . . . Hacks Repelled . | . . . . . . . . Allies | -11 -10 -10 -7 -7 -5 -5 -5 -------- Run | Yrd Mat Sub Rec Scr Fac Upp Upp Total Allies 5 | . . . . . . . 5 Largest Group 5 | . . . . . . . 5 Highest-Rated Group 235 | . . . . . . . 235 Highest-Rated Ally 47 | . . . . . . . 47 Total Orders . | . . . . . . . . Ally Attacks 66 | . . . . . . . 66 Total Damage 1582 | . . . . . . . 1582 Kills 10 | . . . . . . . 10 Allies Corrupted . | . . . . . . . . Allies Melted . | . . . . . . . . Intel | -11 -10 -10 -7 -7 -5 -5 -5 ------- Run | Yrd Mat Sub Rec Scr Fac Upp Upp Robot Analysis Total 10 | . 4 . . 6 . . . Derelict Logs Recovered 10 | . . 3 . 5 . 1 1 Drone Launches . | . . . . . . . . Drone Recoveries . | . . . . . . . . Exploration | -11 -10 -10 -7 -7 -5 -5 -5 ------------- Run | Yrd Mat Sub Rec Scr Fac Upp Upp Turns Passed 10824 | 164 1564 4059 155 2661 773 669 779 Spaces Moved 6569 | 75 540 1529 63 1877 1109 629 747 Core 8 | 8 . . . . . . . Treads 2199 | 67 540 1529 63 . . . . Legs . | . . . . . . . . Wheels 1891 | . . . . 1877 14 . . Hover . | . . . . . . . . Flight 2471 | . . . . . 1095 629 747 Fastest Speed 34 | 50 160 240 250 120 37 80 34 Average Speed 145 | 148 222 248 250 139 43 89 80 Slowest Speed 595 | 160 320 250 250 225 225 97 595 Overloaded Moves . | . . . . . . . . Propulsion Burnouts . | . . . . . . . . Robots Hopped . | . . . . . . . . Cave-ins Triggered 2 | . . . . . 1 . 1 Exploration Rate (%) 52 | 4 81 65 12 84 25 74 76 Regions Visited 7 Branch Regions 5 Pre-discovered Areas 5 | . 1 3 . 1 . . . Known Exits Taken 4 | . 1 . . 1 1 1 . Unknown Exits Taken 3 | 1 . 1 1 . . . . Scrap Searched 16 | . . 7 . 4 . 3 2 Spaces Dug 60 | . . 11 . . 46 . 3 Terrain Destroyed 97 | . . 36 . . 48 9 4 Melee 49 | . . . . . 46 . 3 Projectile 19 | . . 7 . . 2 9 1 AOE 29 | . . 29 . . . . . Terrain Rammed . | . . . . . . . . Walls Destroyed . | . . . . . . . . Machines Disabled . | . . . . . . . . Actions | -11 -10 -10 -7 -7 -5 -5 -5 --------- Run | Yrd Mat Sub Rec Scr Fac Upp Upp Total 7522 | 103 805 1729 62 1931 1321 701 870 Wait 431 | . 175 104 . . 86 5 61 Move 6562 | 74 539 1528 62 1876 1108 628 747 Hop . | . . . . . . . . Pick Up 82 | 7 15 13 . 35 5 6 1 Fast Attach 48 | 7 4 2 . . 19 7 9 Attach 19 | 1 1 2 . 5 4 3 3 Detach 16 | 1 1 1 . 3 6 2 2 Swap 36 | 1 7 14 . 1 5 6 2 Drop 65 | . 8 24 . 11 12 9 1 Fire 184 | 12 51 40 . . 17 33 31 Melee 79 | . 4 1 . . 59 2 13 Ram . | . . . . . . . . Kick . | . . . . . . . . Crush . | . . . . . . . . Escape Stasis . | . . . . . . . . Rewire . | . . . . . . . . Trap . | . . . . . . . . Miscellaneous . | . . . . . . . . Route ------- -11/Scrapyard -10/Materials (discovered 6 exits: [*Mat x3] / *Min x2 / *Sub) -10/Subcaves (discovered 3 exits: *Mat x2 / [*Rec]) -7/Recycling (discovered 2 exits: Fac / *Scr) -7/Scraptown (discovered 2 exits: *Fac x2) -5/Factory (discovered 3 exits: *Fac / *Upp x2) -5/Upper Caves -5/Upper Caves (discovered 1 exit: *Fac) History --------- Turn | Location | Event 34 | -11/Scrapyard | Discovered new exit (range 14) 165 | -11/Scrapyard | Entered Materials 315 | -10/Materials | Build established: Mutant 373 | -10/Materials | Discovered new exit (range 7) 618 | -10/Materials | Discovered new exit (range 14) 834 | -10/Materials | Discovered new exit (range 15) 1265 | -10/Materials | Discovered new exit (range 7) 1281 | -10/Materials | Learned 4 Recycling zone layouts 1316 | -10/Materials | Learned location of 2 exits from Mines 1342 | -10/Materials | Loaded intel: 12 trap records 1357 | -10/Materials | Learned Storage emergency access door positions 1362 | -10/Materials | Identified exit to Subcaves 1362 | -10/Materials | Identified exit to Mines 1364 | -10/Materials | Learned Storage emergency access door positions 1365 | -10/Materials | Learned 2 Storage zone layouts 1729 | -10/Materials | Entered Subcaves 1730 | -10/Subcaves | Identified exit to Materials 1768 | -10/Subcaves | Learned location of Recycling (-7) 1877 | -10/Subcaves | A swath of the cavern ceiling suddenly collapsed 2098 | -10/Subcaves | Learned location of 1 exit from Materials 2188 | -10/Subcaves | Disturbed a concealed Subdweller 2213 | -10/Subcaves | Core integrity fell below 50% 3116 | -10/Subcaves | Shifting Twisted Machinery released Hvy. Battle Rifle 3325 | -10/Subcaves | Learned location of Zion (-7) 3325 | -10/Subcaves | Met a Zionite searching for "candidates" 4363 | -10/Subcaves | Shifting Twisted Machinery released Sub. Machine Gun 4363 | -10/Subcaves | Shifting Twisted Machinery released Sub. Beam Cannon 4966 | -10/Subcaves | Core integrity fell below 20% 4993 | -10/Subcaves | Visited 4L-MR0's lab 5082 | -10/Subcaves | Found Flightbrick 5232 | -10/Subcaves | Curiously followed by a Cobbler waking with a query about "LVR3C" 5781 | -10/Subcaves | Discovered new exit (range 5) 5788 | -10/Subcaves | Entered Recycling 5789 | -7/Recycling | Identified exit to Factory 5878 | -7/Recycling | Scanned before Scraplab entrance 5916 | -7/Recycling | Entered Scraplab 5938 | -7/Recycling | Discovered new exit (range 3) 5943 | -7/Recycling | Entered Scraptown 6250 | -7/Scraptown | Scanned Subdweller tech in exchange for log data 6254 | -7/Scraptown | Learned location of 1 exit from Upper Caves 6255 | -7/Scraptown | Learned Factory machine intel 6256 | -7/Scraptown | Learned location of Extension (-4) 6258 | -7/Scraptown | Learned Factory interactive machine intel 6713 | -7/Scraptown | Discovered exit to Factory (range 11) 6793 | -7/Scraptown | Visited Awakened 6818 | -7/Scraptown | Heard Great Nut preacher, LISTEN AND RECITE! 6823 | -7/Scraptown | Visited Cyclists 6864 | -7/Scraptown | Visited Fellowship of the Rings 6889 | -7/Scraptown | Visited UFD Registry 6889 | -7/Scraptown | Registered with UFD as "Zerosink" 6939 | -7/Scraptown | Visited The Evicted 6962 | -7/Scraptown | Visited Comm Corps 7081 | -7/Scraptown | Visited Chapter 10 7127 | -7/Scraptown | Visited Botcube Research 7147 | -7/Scraptown | Visited Scrapoid Pod Storage 7165 | -7/Scraptown | Visited Scrap Suit Storage 7185 | -7/Scraptown | Visited Abandonware Association 7205 | -7/Scraptown | Learned abandonware demo "ERRANTS.EXE" 7205 | -7/Scraptown | Learned abandonware demo "MELTYB.EXE" 7230 | -7/Scraptown | Visited DA-N13 Charitable Foundation 7271 | -7/Scraptown | Visited Analyses Database 7313 | -7/Scraptown | Visited Infowarlord's Domain 7341 | -7/Scraptown | Visited Scrapoid Research Area 7459 | -7/Scraptown | Delivered Scrap Shield to a Scientist 7986 | -7/Scraptown | Found Lrg. Botcube 8034 | -7/Scraptown | Found Scrapoid Pod 8101 | -7/Scraptown | Build established: Hauler-Mutant 8114 | -7/Scraptown | Found Scrap Suit 8205 | -7/Scraptown | Found DCF Scrap (29 items) 8403 | -7/Scraptown | Found Exp. Sensor Array 8521 | -7/Scraptown | Discovered exit to Factory (range 5) 8604 | -7/Scraptown | Entered Factory 8604 | -5/Factory | Evolved 10 slots: Power x1, Propulsion x4, Utility x4, Weapon x1 8605 | -5/Factory | Loaded intel: 227 machine locations 8606 | -5/Factory | Loaded intel: 52 interactive machine locations 8637 | -5/Factory | Attached Flightbrick, gained temporary slots: Utility x3 8668 | -5/Factory | Lost 7 parts (4u3w) 8751 | -5/Factory | Central database locked down 8909 | -5/Factory | Repaired Broken Nuclear Pulse Array 8949 | -5/Factory | Build established: Derelict-Mutant 9080 | -5/Factory | Discovered new exit (range 15) 9112 | -5/Factory | Discovered new exit (range 6) 9128 | -5/Factory | Identified exit to Factory 9162 | -5/Factory | Spotted B-75 Beast 9210 | -5/Factory | Fabricated Sml. Storage Unit? 9282 | -5/Factory | Identified exit to Upper Caves 9320 | -5/Factory | Crushed by falling debris 9377 | -5/Factory | Entered Upper Caves 9378 | -5/Upper Caves | Identified exit to Upper Caves 9379 | -5/Upper Caves | UFD Scientist delivered a prototype 9380 | -5/Upper Caves | Found Prototype Protection 9380 | -5/Upper Caves | Identified Enh. Scrap Shield 9432 | -5/Upper Caves | Lost 3 parts (1p2u) 9608 | -5/Upper Caves | Found DCF Scrap (13 items) 9662 | -5/Upper Caves | System corruption reached 10% 9962 | -5/Upper Caves | Learned Factory emergency access door positions 10046 | -5/Upper Caves | Entered another Upper Caves area 10125 | -5/Upper Caves | Attracted the attention of an 0b10 checkpoint 10314 | -5/Upper Caves | Build established: Hacker-Mutant 10517 | -5/Upper Caves | Scrapoid Pod released 05U06-D (x5) 10667 | -5/Upper Caves | Crushed by falling debris 10704 | -5/Upper Caves | Attracted the attention of an 0b10 outpost 10757 | -5/Upper Caves | Lost 5 allies 10825 | -5/Upper Caves | Self-destructed Last Messages --------------- 10792_ E-15 Imp unfolds itself. 10802_ Hrd. Light Armor Plating blown off. 10802_ Hyp. Gauss Rifle blown off. 10802_ E-15 Imp destroyed. 10802_ Sneak attack on G-50 Soldier. 10805_ Sneak attack on Y-64 Sentinel. 10808_ Y-64 Sentinel Imp. Treads severed. 10810_ Segregator fries itself beyond repair. 10810_ Sneak attack on Y-64 Sentinel. 10810_ Destroyed Adv. Heat Sink. 10814_ Acquired Cesium-ion Thruster. 10815_ 9L4|KESMQ9G